Cogmind - Beta 14 *** ADVENTURER MODE // 2024.10.13 @ 22:20:17 Player: Three_crows Result: Self-destructed Performance ------------- Evolutions (3) 1500 Regions Visited (4) 800 Robots Destroyed (52) 260 Value Destroyed (1641) 1641 Prototype IDs (1) 20 Alien Tech Used (0) 0 Bonus (0) 0 TOTAL SCORE: 4221 Bonus ------- None Cogmind --------- Core Integrity 427/700 Matter 235/300 Energy 100/100 System Corruption 3% Temperature Cool (0) Movement Treading (317) Ox2 Location -7/Factory Parts ------- > --- POWER (3) -------- (None) > --- PROPULSION (2) --- Armored Treads Advanced Treads > --- UTILITY (5) ------ Large Storage Unit Huge Storage Unit Improved Signal Interpreter Advanced Targeting Computer > --- WEAPON (3) ------- (None) > --- INVENTORY (25) --- Light Treads Armored Treads Aluminum Leg Peak State ------------ > --- POWER ------------ Improved Ion Engine Light Deuterium Engine > --- PROPULSION ------- Light Treads Light Treads > --- UTILITY ---------- Heat Sink Large Storage Unit Huge Storage Unit Small Matter Pod Improved Signal Interpreter > --- WEAPON ----------- Heavy Assault Rifle Assault Cannon Mini Grenade Launcher > --- INVENTORY -------- Light Treads Armored Treads Armored Treads Advanced Treads Heavy EM Shotgun Heavy Particle Cannon Light Assault Rifle Rocket Launcher [Rating: 23] Favorites ----------- Power Ion Engine Engine Ion Engine Propulsion Light Treads Treads Light Treads Utility Small Matter Pod Device Heat Sink Storage Small Matter Pod Processor Improved Signal Interpreter Protection Medium Armor Plating Weapon Light Assault Rifle Energy Gun EM Shotgun Energy Cannon Heavy Particle Cannon Ballistic Gun Light Assault Rifle Ballistic Cannon Assault Cannon Launcher Mini Grenade Launcher Build | -11 -10 -9 -8 -7 ------- Run | Yrd Mat Mat Mat Fac Slots Evolved 6 | . . 2 2 2 Power 2 | . . 1 . 1 Propulsion . | . . . . . Utility 3 | . . 1 1 1 Weapon 1 | . . . 1 . Parts Attached 34 | 6 1 5 12 10 Power 6 | 1 . 2 3 . Engine 6 | 1 . 2 3 . Core . | . . . . . Reactor . | . . . . . Propulsion 8 | 2 . . 4 2 Treads 8 | 2 . . 4 2 Leg . | . . . . . Wheel . | . . . . . Hover . | . . . . . Flight . | . . . . . Utility 8 | 1 1 1 2 3 Device 1 | . . 1 . . Storage 4 | 1 1 . . 2 Processor 2 | . . . 1 1 Hackware . | . . . . . Protection 1 | . . . 1 . Artifact . | . . . . . Weapon 12 | 2 . 2 3 5 Energy Gun 2 | . . 1 . 1 Energy Cannon 1 | . . . . 1 Ballistic Gun 6 | 2 . 1 2 1 Ballistic Cannon 1 | . . . 1 . Launcher 2 | . . . . 2 Special Weapon . | . . . . . Impact Weapon . | . . . . . Slashing Weapon . | . . . . . Piercing Weapon . | . . . . . Special Melee Weapon . | . . . . . Unidentified Prototypes . | . . . . . Parts Lost 15 | . . 2 1 12 Power 4 | . . 1 1 2 Propulsion 2 | . . . . 2 Utility 2 | . . . . 2 Weapon 7 | . . 1 . 6 Highest Loss Streak 8 | . . 1 1 8 To Critical Strikes . | . . . . . Average Slot Usage (%) 88 | . 86 88 97 78 Engine 16 | . 14 21 17 9 Treads 19 | . 28 22 18 15 Device 3 | . . . 9 4 Storage 19 | . 15 22 18 20 Processor 3 | . . . 7 7 Energy Gun 3 | . . 7 . 1 Ballistic Gun 15 | . 28 14 18 10 Ballistic Cannon 3 | . . . 7 4 Peak Build Rating 23 | 6 7 10 21 23 Average Rating 13 | 4 6 8 17 20 On Entrance 8 | . 6 7 10 21 Naked Turns . | . . . . . Heaviest Build 123 | 13 14 20 30 123 Greatest Support 42 | 40 40 40 40 42 Greatest Overweight (x) 3 | 1 . . . 3 Average Overweight (x) . | . . . . 2 Largest Inventory Capacity 25 | 8 8 8 8 25 Average Capacity 11 | 7 8 8 8 23 Most Carried 9 | 6 4 8 8 9 Average Carried 5 | 2 1 4 7 6 Final Capacity 25 | 8 8 8 8 25 Final Carried 8 | 1 3 8 8 3 Class Distribution -------------------- 59% | Mutant 35% | Scavenger-Gunner 5% | Gunner Dominant Class ---------------- Mutant | -10/Materials Mutant | -9/Materials Scavenger-Gunner | -8/Materials Scavenger-Gunner | -7/Factory Resources | -11 -10 -9 -8 -7 ----------- Run | Yrd Mat Mat Mat Fac Matter Collected 979 | 202 84 188 308 197 Remotely . | . . . . . Salvage Created 1791 | . 165 381 576 669 Parts 100 | . 8 23 39 30 Haulers Intercepted . | . . . . . Recyclers Shooed . | . . . . . Parts Field Recycled . | . . . . . Retrieved Matter . | . . . . . Parts Self-Destructed . | . . . . . Prevented . | . . . . . Kills | -11 -10 -9 -8 -7 ------- Run | Yrd Mat Mat Mat Fac Combat Hostiles Destroyed 43 | . 4 10 17 12 Guns 27 | . 4 10 9 4 Cannons 8 | . . . 8 . AOE 7 | . . . . 7 Classes Destroyed 8 | . 1 2 2 3 Worker 1 | . . . 1 . Builder 5 | . . . . 5 Recycler 2 | . . . . 2 Watcher 1 | . . . 1 . Swarmer 11 | . . 4 7 . Grunt 20 | . 4 3 4 9 Sentry 11 | . . 3 6 2 Programmer 1 | . . . . 1 Best Kill Streak 8 | . 2 4 5 8 Combat Bots Only 5 | . 2 4 5 4 Max Kills in Single Turn 4 | . 1 2 1 4 Gunslinging 1 | . . 1 . . Exploded 2 | . . . . 2 Melee . | . . . . . Uniques/NPCs Destroyed . | . . . . . Combat | -11 -10 -9 -8 -7 -------- Run | Yrd Mat Mat Mat Fac Hostile Shots Fired 373 | . 22 74 71 206 Missed 112 | . 9 17 21 65 Damage Taken 2909 | . 129 481 500 1799 Core 447 | . 17 81 76 273 Absorbed by Shields . | . . . . . Ignored by Resistances 853 | . 41 145 144 523 Core Remaining (%) 89 | 100 93 79 86 . Volleys Fired 115 | . 11 27 34 43 Largest 3 | . 2 2 3 3 Hottest 97 | . 40 65 87 97 Shots Fired 239 | . 22 54 100 63 Gun 183 | . 22 54 68 39 Cannon 48 | . . . 32 16 Launcher 8 | . . . . 8 Special . | . . . . . Kinetic 197 | . 22 41 100 34 Thermal 10 | . . . . 10 Explosive 8 | . . . . 8 Electromagnetic 24 | . . 13 . 11 Robot Hit Streak 21 | . 7 15 19 21 Robot Miss Streak 3 | . 2 1 3 3 Penetration Max . | . . . . . Secondary Targets 4 | . 1 3 . . Max Gunslinging Chain 1 | . 1 1 . . Shots Hit Robots 180 | . 16 45 71 48 Core Hits 104 | . 10 21 33 40 Critical Kills . | . . . . . Critical Parts Destroyed . | . . . . . Critical Strikes . | . . . . . Melee Attacks . | . . . . . Impact . | . . . . . Slashing . | . . . . . Piercing . | . . . . . Sneak Attacks . | . . . . . Combat Hostiles . | . . . . . Follow-up Attacks . | . . . . . Damage Inflicted 3631 | . 169 505 1080 1877 Guns 1769 | . 169 505 621 474 Cannons 767 | . . . 459 308 Explosions 1095 | . . . . 1095 Melee . | . . . . . Ramming . | . . . . . Kinetic 1879 | . 169 328 1080 302 Thermal 426 | . . . . 426 Explosive 906 | . . . . 906 Electromagnetic 420 | . . 177 . 243 Impact . | . . . . . Slashing . | . . . . . Piercing . | . . . . . Highest Corruption 3 | . . . . 3 Average Corruption 2 | . . . . 2 Corruption Purged . | . . . . . Corruption Blocked . | . . . . . Overload Shots . | . . . . . Overflow Damage 11 | . . . . 11 Projectiles . | . . . . . Explosions 11 | . . . . 11 Melee . | . . . . . Knockbacks 1 | . . . 1 . Impact . | . . . . . Kinetic 1 | . . . 1 . Secondary . | . . . . . Self-Inflicted Damage 151 | . . . . 151 Shots 6 | . . . . 6 Rammed . | . . . . . Targets Rammed . | . . . . . Kicked . | . . . . . Crushed . | . . . . . Highest Temperature 132 | . 16 132 54 98 Average Temperature 29 | . 6 38 25 28 Received Heat Transfer 1557 | . 96 180 315 966 Siege Activations . | . . . . . Robots Corrupted . | . . . . . Combat Hostiles . | . . . . . Parts Fried 1 | . . 1 . . Impact Corruptions . | . . . . . Robots Melted 1 | . . . . 1 Combat Hostiles 1 | . . . . 1 Parts Melted 3 | . . . . 3 Heat Transferred 483 | . . . . 483 Parts Sabotaged . | . . . . . Parts Stolen . | . . . . . Parts Stripped . | . . . . . Power Chain Reactions 2 | . . . . 2 Alert | -11 -10 -9 -8 -7 ------- Run | Yrd Mat Mat Mat Fac Peak Influence 300 | . 90 207 300 272 Initial 39 | . . 32 . 39 Average 85 | . 32 63 157 65 Maximum Alert Level 1 | . . 1 1 1 Low Security (%) 84 | 100 100 92 55 99 Level 1 15 | . . 7 44 . Level 2 . | . . . . . Level 3 . | . . . . . Level 4 . | . . . . . Level 5 . | . . . . . High Security . | . . . . . Max Security . | . . . . . Squads Dispatched 6 | . . 2 . 4 Investigation 1 | . . 1 . . Extermination . | . . . . . Reinforcement 2 | . . 1 . 1 Assault . | . . . . . Garrison 3 | . . . . 3 Intercept . | . . . . . Searches Triggered . | . . . . . Construction Impeded 1 | . . . . 1 Haulers Reinforced . | . . . . . Active Scanning Responses . | . . . . . Cargo Convoy Interrupts . | . . . . . Stealth | -11 -10 -9 -8 -7 --------- Run | Yrd Mat Mat Mat Fac Distress Signals 4 | . . 3 1 . Communications Jammed . | . . . . . Distress Signals . | . . . . . Times Spotted 58 | . 5 17 22 14 Peak Tracking Total 5 | . 3 4 5 5 Tactical Retreats 3 | . . 2 1 . Traps | -11 -10 -9 -8 -7 ------- Run | Yrd Mat Mat Mat Fac Traps Triggered . | . . . . . Indirectly . | . . . . . Trap Hack Attempts . | . . . . . Triggered . | . . . . . Disarmed . | . . . . . Reprogrammed . | . . . . . Reused . | . . . . . Traps Extracted . | . . . . . Installed . | . . . . . Triggered . | . . . . . Machines | -11 -10 -9 -8 -7 ---------- Run | Yrd Mat Mat Mat Fac Machines Disabled 3 | . . . . 3 Max in Single Turn 2 | . . . . 2 Machines Repaired . | . . . . . Machines Dismantled . | . . . . . Machines Sabotaged . | . . . . . Overloaded Fab Kills . | . . . . . Hacking | -11 -10 -9 -8 -7 --------- Run | Yrd Mat Mat Mat Fac Machines Accessed 5 | . . 1 4 . Terminals 4 | . . 1 3 . Fabricators . | . . . . . Repair Stations . | . . . . . Recycling Units . | . . . . . Scanalyzers 1 | . . . 1 . Garrison Access . | . . . . . Total Hacks 11 | . . 3 8 . Successful 7 | . . 2 5 . Failed 4 | . . 1 3 . Catastrophic . | . . . . . Database Lockouts . | . . . . . Manual 1 | . 1 . . . Terminals 10 | . . 3 7 . Fabricators . | . . . . . Repair Stations . | . . . . . Recycling Units . | . . . . . Scanalyzers 1 | . . . 1 . Garrison Access . | . . . . . Terminal Hacks 6 | . . 2 4 . Record 1 | . . . 1 . Alert Level 1 | . . . 1 . Locate Traps 2 | . . 1 1 . Reinforcement Status 1 | . . . 1 . Zone Layout 1 | . . 1 . . Fabricator Hacks . | . . . . . Repair Station Hacks . | . . . . . Recycling Unit Hacks . | . . . . . Scanalyzer 1 | . . . 1 . Insert Component 1 | . . . 1 . Garrison Access Hacks . | . . . . . Unauthorized Hacks . | . . . . . Terminals . | . . . . . Fabricators . | . . . . . Repair Stations . | . . . . . Recycling Units . | . . . . . Scanalyzers . | . . . . . Garrison Access . | . . . . . Data Cores Recovered . | . . . . . Used . | . . . . . Hacking Detections 1 | . . 1 . . Full Trace Events 1 | . . 1 . . Feedback Events . | . . . . . Feedback Blocked . | . . . . . Robot Schematics Acquired . | . . . . . Robots Built . | . . . . . Authchips . | . . . . . Time . | . . . . . Total Robot Build Rating . | . . . . . Part Schematics Acquired . | . . . . . Parts Built . | . . . . . Authchips . | . . . . . Time . | . . . . . Total Part Build Rating . | . . . . . Parts Repaired . | . . . . . Time . | . . . . . Parts Recycled . | . . . . . Recycled Matter . | . . . . . Retrieved Matter . | . . . . . Retrieved Components . | . . . . . Parts Scanalyzed . | . . . . . Part Schematics Acquired . | . . . . . Parts Damaged . | . . . . . Bothacking | -11 -10 -9 -8 -7 ------------ Run | Yrd Mat Mat Mat Fac Used RIF Installer . | . . . . . Robots Hacked . | . . . . . Non-combat . | . . . . . Combat . | . . . . . Robot Hacks Applied . | . . . . . Relay Couplers Released . | . . . . . Fabnet Peak Effective % . | . . . . . Robots Rewired . | . . . . . Allies Hacked . | . . . . . Hacks Repelled . | . . . . . Allies | -11 -10 -9 -8 -7 -------- Run | Yrd Mat Mat Mat Fac Total Allies . | . . . . . Largest Group . | . . . . . Highest-Rated Group . | . . . . . Highest-Rated Ally . | . . . . . Total Orders . | . . . . . Ally Attacks . | . . . . . Total Damage . | . . . . . Kills . | . . . . . Allies Corrupted . | . . . . . Allies Melted . | . . . . . Intel | -11 -10 -9 -8 -7 ------- Run | Yrd Mat Mat Mat Fac Robot Analysis Total . | . . . . . Derelict Logs Recovered . | . . . . . Drone Launches . | . . . . . Drone Recoveries . | . . . . . Exploration | -11 -10 -9 -8 -7 ------------- Run | Yrd Mat Mat Mat Fac Turns Passed 3222 | 67 274 1234 864 783 Spaces Moved 1174 | 46 150 339 450 189 Core 19 | 19 . . . . Treads 1155 | 27 150 339 450 189 Legs . | . . . . . Wheels . | . . . . . Hover . | . . . . . Flight . | . . . . . Fastest Speed 50 | 50 160 160 160 160 Average Speed 187 | 121 160 160 160 340 Slowest Speed 400 | 160 160 160 160 400 Overloaded Moves . | . . . . . Propulsion Burnouts . | . . . . . Robots Hopped . | . . . . . Cave-ins Triggered . | . . . . . Exploration Rate (%) 19 | 3 28 30 33 3 Regions Visited 4 Branch Regions . Pre-discovered Areas . | . . . . . Known Exits Taken 1 | . . . 1 . Unknown Exits Taken 3 | 1 1 1 . . Scrap Searched . | . . . . . Spaces Dug . | . . . . . Terrain Destroyed 31 | . . . 8 23 Melee . | . . . . . Projectile 9 | . . . 8 1 AOE 22 | . . . . 22 Terrain Rammed . | . . . . . Walls Destroyed . | . . . . . Machines Disabled . | . . . . . Actions | -11 -10 -9 -8 -7 --------- Run | Yrd Mat Mat Mat Fac Total 2003 | 57 164 982 528 272 Wait 643 | . . 603 14 26 Move 1170 | 45 149 338 449 189 Hop . | . . . . . Pick Up 30 | 6 3 9 9 3 Fast Attach 4 | 1 . . 2 1 Attach 19 | 5 1 4 2 7 Detach . | . . . . . Swap 11 | . . 1 8 2 Drop 11 | . . . 10 1 Fire 115 | . 11 27 34 43 Melee . | . . . . . Ram . | . . . . . Kick . | . . . . . Crush . | . . . . . Escape Stasis . | . . . . . Rewire . | . . . . . Trap . | . . . . . Miscellaneous . | . . . . . Route ------- -11/Scrapyard -10/Materials -9/Materials -8/Materials -7/Factory History --------- Turn | Location | Event 33 | -11/Scrapyard | Discovered new exit (range 14) 68 | -11/Scrapyard | Entered Materials 330 | -10/Materials | Discovered new exit (range 5) 331 | -10/Materials | Build established: Mutant 342 | -10/Materials | Entered another Materials area 342 | -9/Materials | Evolved 2 slots: Power x1, Utility x1 1562 | -9/Materials | Discovered new exit (range 6) 1576 | -9/Materials | Entered another Materials area 1576 | -8/Materials | Evolved 2 slots: Utility x1, Weapon x1 2104 | -8/Materials | Build established: Scavenger-Gunner 2416 | -8/Materials | Discovered new exit (range 15) 2438 | -8/Materials | Identified exit to Factory 2440 | -8/Materials | Entered Factory 2440 | -7/Factory | Evolved 2 slots: Power x1, Utility x1 2951 | -7/Factory | Garrison activated, responded to threat 2973 | -7/Factory | Lost 8 parts (2p2n1u3w) 3223 | -7/Factory | Self-destructed Last Messages --------------- 03180_ U-05 Engineer builds a Wall. 03180_ U-05 Engineer lays Concrete. 03182_ U-05 Engineer builds a Wall. 03183_ U-05 Engineer lays Concrete. 03211_ Hvy. Particle Cannon destroyed. 03213_ G-47 Trooper destroyed. 03214_ R-06 Scavenger collects Aluminum Leg. 03215_ G-47 Trooper destroyed. 03217_ Fusion Modulator explodes. 03217_ Assembly Bed disabled. 03217_ Destroyed Com. Wheel. 03217_ U-05 Engineer lays Concrete. 03217_ U-05 Engineer destroyed. 03217_ ALERT: Construction progress impeded, dispatching reinforcements to local area. 03218_ U-05 Engineer lays Concrete. 03219_ U-05 Engineer destroyed. 03219_ P-60 Hacker destroyed. 03219_ U-05 Engineer destroyed. 03221_ Rocket Launcher severed. Map ----- +----------------------------------------------------+ | ?????????????????????????????????????????????????? | | ?????????????????????????????????????????????????? | | ?????????????????????????????????????????????????? | | ?????????????????????????????????????????????????? | | ?????????????????????????????????????????????????? | | ?????????????????????????????????????????????????? | | ?????????????????????????????????????????????????? | | ?????????????????????????????????????????????????? | | ?????????????????????????????????????????????????? | | ?????????????????????????????????????????????????? | | ?????????????????????????????????????????????????? | | ?????????????????????????????????????????????????? | | ?????????????????????????????????????????????????? | | ?????????????????????????????????????????????????? | | ?????????????????????????????????????????????????? | | ?????????????#???????????????????????????????????? | | ?????????????# ????#############?????????????????? | | ???????####### ??# !! #?????????????????? | | ??????# ?# !! #?????????????????? | | ??????# # ] ##????????????????? | | ??????# # % #????????????????? | | ?????????? """""" # ##????????????????? | | ?????????? "" # #?????????????????? | | ????????? # #?????????????????? | | ??????? ####### ???????????? | | ??????? [%= [ l@=! a #????????? | | ??????# ?? =! % #????????? | | ??????# |=! #????????? | | ??????+ % ?????????? | | ??????# ?????????? | | ??????# ! # # ################??????????? | | ????### # [[[ #????????????????????? | | ??? """ + [[[ #????????????????????? | | Y" # [[[ ##???????????????????? | | "" + #????????????????????? | | # ##???????????????????? | | % # % ##???????????????????? | | ##########" ###% ##???????????????????? | | #????????#" # #% % ##???????????????????? | | #????????## # # ##???????????????????? | | #?????????# # ##"## #####???????????????????? | | #?????????# ## ## "## #????????????????????? | | #?????????# ## ###????????????????????? | | ###########+#### #####??????????????????????? | | # ![ #?###??????????????????????????? | | #= ![ #??????????????????????????????? | | # ![ "" #??????????????????????????????? | | # "" #??????????????????????????????? | | # """ #??????????????????????????????? | | + """ #??????????????????????????????? | +----------------------------------------------------+ Best States ------------- Heat Dissipation 44 Energy Generation 21 Energy Capacity 400 Matter Stores 350 Matter Capacity 350 Sight Range 16 Terrain Scan Density 10 Armor Coverage 225 Resistance: KI 20 Resistance: TH 20 Resistance: EX 20 Resistance: EM 20 Resistance: I 20 Resistance: S 20 Resistance: P 20 Evasion (%) 40 Targeting Accuracy 8 Recoil Reduction 2 Offensive Hacking 10 Item Schematics ----------------- None Robot Schematics ------------------ None Fabricated ------------ Nothing Alien Tech Used ----------------- None Achievements -------------- None Challenges ------------ None Game ------ Seed RestorationScrapCalibrator Manual? 0 Play Time 00:37:35 Cumulative 7.3 hours Start 2024.10.04 @ 22:09:41 End 2024.10.13 @ 22:20:17 Sessions 3 Manual Loads 0 Difficulty Adventurer Special Mode None Game No. 15 Rogue 0 Adventurer 15 Explorer 0 Win Type - Total 0 Types 0/0/0/0/0/0/0/0/0 Lore% 6 Gallery% 9 Achievement% 9 Wizard Run 0 Options --------- Layout 1 ASCII 0 Keyboard 0 Movement Mouse Keybinds 0 Fullscreen 1 Font 24/Smallcaps Map View 50x35 Zoom Use 0% Tactical HUD 1 Map Filters NONE Filters NONE Steam 1 RUN: 37529c7d-3c44-4962-8a29-5acb81ce21d3